bitfinex/quotes_SOLUSD_20260202
["timestamp","ask_amount","ask_price","bid_price","bid_amount"]
[1770003335964,4.5,96.738,96.69,24.77375504]
[1770003336164,4.5,96.757,96.72,24.77375504]
[1770003336501,4.5,96.757,96.7,24.77375504]
[1770003336783,4.5,96.739,96.68,24.77375504]
[1770003336979,24.77375504,96.74,96.68,24.77375504]
[1770003336980,4.5,96.729,96.68,24.77375504]
[1770003337168,4.5,96.719,96.66,24.77375504]
[1770003337370,4.5,96.737,96.71,24.77375504]
[1770003337676,4.5,96.737,96.622,28.76]
[1770003337880,4.5,96.737,96.71,24.77375504]
[1770003338382,4.5,96.737,96.7,24.77375504]
[1770003338687,4.5,96.737,96.69,24.77375504]
[1770003338992,4.5,96.737,96.68,24.77375504]
[1770003339369,4.5,96.737,96.69,24.77375504]
[1770003339696,4.5,96.737,96.7,24.77375504]
[1770003339870,4.5,96.737,96.69,24.77375504]
[1770003340588,4.5,96.779,96.71,24.77375504]
[1770003340770,4.5,96.759,96.7,24.77375504]
[1770003341089,4.5,96.759,96.71,24.77375504]
[1770003341286,4.5,96.759,96.72,24.77375504]
[1770003341582,4.5,96.759,96.71,24.77375504]
[1770003341786,4.5,96.799,96.73,24.77375504]
[1770003342001,4.5,96.789,96.73,24.77375504]
[1770003342301,4.5,96.789,96.74,24.77375504]
[1770003342903,4.5,96.779,96.65,51.47178366]
[1770003343201,5.36086188,96.823,96.581,51.42668678]
[1770003343202,4.5,96.739,96.581,51.42668678]
[1770003343402,4.5,96.709,96.581,0.22007997]
[1770003343586,4.5,96.709,96.58,28.96]
[1770003343587,4.5,96.709,96.66,24.77375504]
[1770003343785,4.5,96.709,96.592,4.27527085]
[1770003343988,4.5,96.709,96.65,24.77375504]
[1770003344201,4.5,96.699,96.63,24.77375504]
[1770003344379,4.27527085,96.729,96.62,24.77375504]
[1770003344380,4.5,96.679,96.62,24.77375504]
[1770003344580,4.5,96.679,96.58,0.2]
[1770003344581,4.5,96.679,96.63,24.77375504]
[1770003344882,4.5,96.679,96.64,24.77375504]
[1770003345082,4.5,96.679,96.63,24.77375504]
[1770003345397,4.5,96.659,96.61,24.77375504]
[1770003345594,4.5,96.659,96.58,0.2]
[1770003345595,4.5,96.659,96.6,24.77375504]
[1770003345804,4.5,96.649,96.59,24.77375504]
[1770003345984,4.5,96.649,96.61,24.77375504]
[1770003346185,4.5,96.672,96.62,24.77375504]
[1770003346386,4.5,96.672,96.64,24.77375504]
[1770003346689,4.5,96.672,96.62,24.77375504]
[1770003347002,24.77375504,96.71,96.58,0.2]
[1770003347206,4.5,96.709,96.66,24.77375504]
[1770003347416,4.5,96.679,96.62,24.77375504]
[1770003347718,4.5,96.659,96.61,24.77375504]
[1770003347896,4.5,96.659,96.62,24.77375504]
[1770003348386,4.5,96.659,96.58,0.2]
[1770003348908,4.5,96.659,96.63,24.77375504]
[1770003349298,4.5,96.678,96.65,24.77375504]
[1770003349517,4.5,96.678,96.64,24.77375504]
[1770003350008,4.5,96.678,96.65,24.77375504]
[1770003350207,4.5,96.678,96.592,4.27527085]
[1770003350421,4.5,96.709,96.592,4.27527085]
[1770003350614,4.5,96.699,96.64,24.77375504]
[1770003350795,4.5,96.699,96.65,24.77375504]
[1770003350997,4.5,96.699,96.66,24.77375504]
[1770003351308,4.5,96.689,96.58,0.2]
[1770003351617,4.5,96.679,96.63,24.77375504]
[1770003351792,4.5,96.679,96.65,24.77375504]
[1770003351992,4.5,96.679,96.63,24.77375504]
[1770003352513,4.5,96.669,96.61,24.77375504]
[1770003352695,4.5,96.659,96.61,24.77375504]
[1770003352897,4.5,96.649,96.61,24.77375504]
[1770003353143,4.5,96.649,96.62,24.77375504]
[1770003353313,4.5,96.649,96.58,0.2]
[1770003353514,4.5,96.629,96.59,24.77375504]
[1770003353717,4.5,96.629,96.58,0.2]
[1770003353919,4.5,96.619,96.58,0.2]
[1770003354316,4.4,96.609,96.55,24.77375504]
[1770003354620,4.4,96.629,96.59,24.77375504]
[1770003354806,4.4,96.629,96.547,0.2]
[1770003355001,25.85391565,96.698,96.497,25.90745691]
[1770003355002,4.4,96.619,96.59,24.77375504]
[1770003355205,4.4,96.637,96.546,0.2]
[1770003355506,4.4,96.637,96.563,0.2]
[1770003355814,4.4,96.637,96.62,24.77375504]
[1770003356020,4.4,96.637,96.563,0.2]
[1770003356211,10.32718829,96.731,96.516,5.36086188]
[1770003356212,4.4,96.679,96.63,24.77375504]
[1770003356519,4.4,96.679,96.64,24.77375504]
[1770003357296,4.4,96.679,96.63,24.77375504]
[1770003358136,4.4,96.679,96.62,24.77375504]
[1770003358298,4.4,96.659,96.6,24.77375504]
[1770003358504,4.4,96.659,96.62,24.77375504]
[1770003358698,4.4,96.659,96.63,24.77375504]
[1770003359218,4.4,96.659,96.64,24.77375504]
[1770003359417,4.4,96.689,96.594,0.2]
[1770003359604,4.4,96.689,96.64,24.77375504]
[1770003359799,4.4,96.679,96.63,24.77375504]
[1770003360520,4.4,96.699,96.592,0.2]
[1770003360729,4.4,96.689,96.608,0.2]
[1770003360913,4.4,96.739,96.68,24.77375504]
[1770003361118,4.4,96.757,96.72,24.77375504]
[1770003361413,4.4,96.757,96.7,24.77375504]
[1770003361615,4.4,96.755,96.7,24.77375504]
[1770003361917,4.4,96.709,96.65,24.77375504]
[1770003362119,4.4,96.699,96.66,24.77375504]
[1770003362318,4.4,96.719,96.69,24.77375504]
[1770003362622,4.4,96.719,96.615,51.74641441]
[1770003362623,4.4,96.761,96.685,0.2]
[1770003362805,4.4,96.759,96.72,24.77375504]
[1770003362999,4.4,96.759,96.668,0.2]
[1770003363000,4.4,96.759,96.71,24.77375504]
[1770003363206,4.4,96.759,96.72,24.77375504]
[1770003363516,4.29654,96.759,96.7,24.77375504]
[1770003363717,4.27527085,96.755,96.69,24.77375504]
[1770003363924,6.25595831,96.754,96.7,24.77375504]
[1770003364105,4.27527085,96.767,96.71,24.77375504]
[1770003364302,6.25783903,96.766,96.72,24.77375504]
[1770003364506,10.52308433,96.84,96.74,24.77375504]
[1770003364703,24.77375504,96.8,96.74,24.77375504]
[1770003364901,24.77375504,96.78,96.73,24.77375504]
[1770003365108,6.25869568,96.779,96.73,24.77375504]
[1770003365411,4.34827,96.759,96.71,24.77375504]
[1770003365617,4.34827,96.759,96.74,24.77375504]
[1770003365920,4.34827,96.789,96.73,24.77375504]
[1770003366121,4.34827,96.787,96.73,24.77375504]
[1770003366421,24.77375504,96.79,96.73,24.77375504]
[1770003366422,4.34827,96.769,96.73,24.77375504]
[1770003366624,4.34827,96.799,96.75,24.77375504]
[1770003366928,4.34827,96.799,96.686,4.27527085]
[1770003366929,4.34827,96.789,96.73,24.77375504]
[1770003367220,4.34827,96.779,96.73,24.77375504]
[1770003367401,4.34827,96.809,96.77,24.77375504]
[1770003367598,4.34827,96.826,96.79,24.77375504]
[1770003367802,0.1,96.84,96.82,24.77375504]
[1770003367998,4.36332978,96.862,96.82,24.77375504]
[1770003368206,39.18308433,96.925,96.766,0.30346]
[1770003368207,4.36332978,96.859,96.8,24.77375504]
[1770003368416,5.40643105,96.888,96.766,0.30346]
[1770003368417,4.36332978,96.849,96.79,24.77375504]
[1770003368617,4.36332978,96.839,96.79,24.77375504]
[1770003368826,4.36332978,96.829,96.78,24.77375504]
[1770003369039,4.36332978,96.819,96.77,24.77375504]
[1770003369738,24.77375504,96.82,96.77,24.77375504]
[1770003369739,4.36332978,96.817,96.77,24.77375504]
[1770003369908,4.36332978,96.809,96.77,24.77375504]
[1770003370225,4.36332978,96.809,96.75,24.77375504]
[1770003370424,4.36332978,96.789,96.73,24.77375504]
[1770003370624,4.36332978,96.789,96.709,0.30346]
[1770003370625,4.36332978,96.789,96.74,24.77375504]
[1770003370806,4.36332978,96.789,96.73,24.77375504]
[1770003371217,4.36332978,96.769,96.72,24.77375504]
[1770003371826,4.36332978,96.759,96.71,24.77375504]
[1770003372029,4.36332978,96.749,96.69,24.77375504]
[1770003372235,4.36332978,96.739,96.69,24.77375504]
[1770003372614,4.36332978,96.729,96.67,24.77375504]
[1770003372807,4.36332978,96.729,96.6,24.77375504]
[1770003372808,4.36332978,96.729,96.68,24.77375504]
[1770003373209,4.36332978,96.729,96.654,0.30346]
[1770003373210,4.36332978,96.729,96.67,24.77375504]
[1770003373606,4.36332978,96.729,96.68,24.77375504]
[1770003373809,4.36332978,96.729,96.69,24.77375504]
[1770003374115,4.36332978,96.746,96.71,24.77375504]
[1770003374314,4.36332978,96.746,96.7,24.77375504]
[1770003374519,4.36332978,96.746,96.7,24.76103881]
[1770003374728,4.36332978,96.746,96.71,24.76103881]
[1770003375108,4.36332978,96.765,96.73,24.76103881]
[1770003375515,4.36332978,96.765,96.74,24.76103881]
[1770003375731,4.36332978,96.765,96.646,10.34701537]
[1770003375732,4.36332978,96.802,96.76,24.76103881]
[1770003375935,4.36332978,96.802,96.77,24.76103881]
[1770003376137,4.36332978,96.799,96.702,0.30346]
[1770003376317,4.36332978,96.786,96.656,0.30346]
[1770003376635,4.36332978,96.786,96.75,24.76103881]
[1770003377131,4.36332978,96.786,96.74,24.76103881]
[1770003377338,4.36332978,96.769,96.666,0.30346]
[1770003377647,24.76103881,96.72,96.67,24.76103881]
[1770003377935,4.36332978,96.709,96.66,24.76103881]
[1770003378328,4.36332978,96.689,96.63,24.76103881]
[1770003378535,4.36332978,96.679,96.62,24.76103881]
[1770003378750,4.36332978,96.669,96.61,24.76103881]
[1770003378918,4.36332978,96.659,96.572,0.30346]
[1770003379248,4.27527085,96.706,96.32,3.99872272]
[1770003379249,4.36332978,96.609,96.521,0.30346]
[1770003379545,4.36332978,96.569,96.46,0.2]
[1770003379734,4.36332978,96.539,96.46,0.2]
[1770003379916,4.36332978,96.539,96.48,24.76103881]
[1770003380116,1.36332978,96.539,96.5,24.76103881]
[1770003380533,24.76103881,96.56,96.51,24.76103881]
[1770003380730,24.76103881,96.6,96.481,4.0712169]
[1770003380941,5.36086188,96.569,96.481,4.0712169]
[1770003381140,24.76103881,96.57,96.51,24.76103881]
[1770003381654,24.76103881,96.55,96.49,24.76103881]
[1770003381830,24.76103881,96.55,96.5,24.76103881]
[1770003382021,24.76103881,96.57,96.51,24.76103881]
[1770003382221,4.36332978,96.579,96.53,24.76103881]
[1770003382523,4.36332978,96.609,96.55,24.76103881]
[1770003382838,4.36332978,96.599,96.55,24.76103881]
[1770003383018,4.36332978,96.599,96.56,24.76103881]
[1770003383214,4.27527085,96.624,96.53,24.76103881]
[1770003383215,24.76103881,96.59,96.53,24.76103881]
[1770003383418,25.87511428,96.618,96.484,4.27527085]
[1770003383419,4.36332978,96.589,96.54,24.76103881]
[1770003383614,4.36332978,96.589,96.55,24.76103881]
[1770003383820,4.36332978,96.589,96.53,24.76103881]
[1770003384022,4.36332978,96.579,96.52,24.76103881]
[1770003384224,4.36332978,96.559,96.51,24.76103881]
[1770003384427,28.78,96.59,96.411,28.76]
[1770003384428,4.36332978,96.602,96.531,4.0712169]
[1770003384644,4.36332978,96.599,96.55,24.76103881]
[1770003384854,4.36332978,96.579,96.481,4.0712169]
[1770003385022,4.36332978,96.579,96.54,24.76103881]
[1770003385220,4.36332978,96.616,96.56,24.76103881]
[1770003385620,4.36332978,96.599,96.54,24.76103881]
[1770003385837,4.36332978,96.579,96.484,4.0712169]
[1770003386037,4.36332978,96.579,96.53,24.76103881]
[1770003386348,4.27527085,96.567,96.51,24.76103881]
[1770003386521,4.36332978,96.566,96.51,24.76103881]
[1770003386722,4.36332978,96.559,96.51,24.76103881]
[1770003387040,4.36332978,96.579,96.53,24.76103881]
[1770003387239,4.36332978,96.579,96.52,24.76103881]
[1770003387735,51.73540703,96.646,96.44,0.2]
[1770003387736,4.36332978,96.596,96.55,24.76103881]
[1770003388332,4.36332978,96.616,96.57,24.76103881]
[1770003388719,5.41500842,96.648,96.362,20.61394548]
[1770003388720,4.36332978,96.609,96.538,4.0712169]
[1770003388935,4.36332978,96.599,96.54,24.76103881]
[1770003389445,5.36086188,96.62,96.521,4.0712169]
[1770003389446,4.36332978,96.579,96.521,4.0712169]
[1770003389632,4.36332978,96.579,96.53,24.76103881]
[1770003389836,4.36332978,96.579,96.521,4.0712169]
[1770003390348,10.35035967,96.615,96.44,10.56910283]
[1770003390349,4.36332978,96.569,96.511,4.0712169]
[1770003390522,4.36332978,96.549,96.49,24.76103881]
[1770003390722,4.36332978,96.549,96.44,0.2]
[1770003390723,4.36332978,96.529,96.461,4.0712169]
[1770003390931,4.36332978,96.529,96.48,24.76103881]
[1770003391330,4.36332978,96.549,96.49,24.76103881]
[1770003391535,24.76103881,96.53,96.48,24.76103881]
[1770003391739,4.36332978,96.539,96.471,4.0712169]
[1770003391923,28.78,96.561,96.49,24.76103881]
[1770003392124,29.12436859,96.56,96.51,24.76103881]
[1770003392631,4.36332978,96.539,96.48,24.76103881]
[1770003392823,24.76103881,96.53,96.474,4.0712169]
[1770003393120,10.28168149,96.646,96.52,24.76103881]
[1770003393350,4.36332978,96.588,96.53,24.76103881]
[1770003393528,31.08,96.637,96.521,4.0712169]
[1770003393529,4.36332978,96.579,96.521,4.0712169]
[1770003393862,10.34757504,96.641,96.41,4.69867796]
[1770003393863,4.36332978,96.456,96.41,4.69867796]
[1770003394151,4.36332978,96.509,96.441,4.0712169]
[1770003394323,24.76103881,96.5,96.45,24.76103881]
[1770003394522,24.76103881,96.5,96.423,4.0712169]
[1770003394523,4.36332978,96.499,96.423,4.0712169]
[1770003394726,4.36332978,96.479,96.42,24.76103881]
[1770003395127,24.76103881,96.46,96.396,4.0712169]
[1770003395344,36.26003626,96.525,96.396,4.0712169]
[1770003395345,4.36332978,96.469,96.41,24.76103881]
[1770003395543,4.36332978,96.505,96.431,4.0712169]
[1770003395746,4.36332978,96.542,96.47,24.76103881]
[1770003395951,4.36332978,96.529,96.461,4.0712169]
[1770003396130,24.76103881,96.51,96.45,24.76103881]
[1770003396453,24.76103881,96.46,96.4,24.76103881]
[1770003396631,24.76103881,96.45,96.396,4.0712169]
[1770003396945,4.27649951,96.403,96.32,3.95508942]
[1770003397246,5.36086188,96.402,96.321,4.0712169]
[1770003397437,4.27649951,96.449,96.351,4.0712169]
[1770003397639,88.11120669,96.469,96.361,4.0712169]
[1770003397640,4.27649951,96.43,96.361,4.0712169]
[1770003397822,24.76103881,96.44,96.371,4.43088849]
[1770003398180,28.8,96.466,96.205,4.43088849]
[1770003398181,4.27527085,96.358,96.205,4.43088849]
[1770003398325,5.36086188,96.361,96.039,22.42]
[1770003398326,24.76103881,96.28,96.211,4.43088849]
[1770003398649,24.76103881,96.29,96.231,4.43088849]
[1770003399140,24.76103881,96.3,96.231,4.43088849]
[1770003399338,24.76103881,96.3,96.141,31.43225866]
[1770003399339,24.76103881,96.33,96.271,4.43088849]
[1770003399645,4.2764995,96.415,96.321,4.43088849]
[1770003399847,4.2764995,96.388,96.301,4.43088849]
[1770003400053,10.3718301,96.415,96.125,4.43088849]
[1770003400054,4.2764995,96.306,96.125,4.43088849]
[1770003400343,51.12054999,96.386,96.0,27.15036081]
[1770003400344,4.2337345,96.215,96.111,4.43088849]
[1770003400541,4.2337345,96.215,96.151,4.43088849]
[1770003400723,51.45836867,96.383,96.211,4.43088849]
[1770003400925,4.2337345,96.325,96.26,24.76103881]
[1770003401127,4.2337345,96.298,96.225,4.43088849]
[1770003401343,4.2337345,96.298,96.24,24.76103881]
[1770003401524,5.36086188,96.297,96.23,24.76103881]
[1770003401844,4.2337345,96.329,96.27,24.76103881]
[1770003402351,4.2337345,96.319,96.26,24.76103881]
[1770003402644,51.76575801,96.425,96.3,24.76103881]
[1770003402848,4.2337345,96.369,96.31,24.76103881]
[1770003403043,4.2337345,96.416,96.36,24.76103881]
[1770003403233,4.2337345,96.437,96.37,24.76103881]
[1770003403548,4.2337345,96.437,96.38,24.76103881]
[1770003403749,4.2337345,96.429,96.37,24.76103881]
[1770003404045,24.76103881,96.47,96.41,24.76103881]
[1770003404249,24.76103881,96.44,96.301,4.43088849]
[1770003404440,28.99477331,96.43,96.37,24.76103881]
[1770003404638,28.99477331,96.43,96.36,24.76103881]
[1770003404639,24.76103881,96.42,96.36,24.76103881]
[1770003404842,4.2337345,96.439,96.37,24.76103881]
[1770003405229,4.2337345,96.419,96.36,7.43103881]
[1770003405428,24.76103881,96.38,96.32,24.76103881]
[1770003405631,4.2337345,96.403,96.35,24.76103881]
[1770003405954,4.2337345,96.403,96.36,24.76103881]
[1770003406142,10.36930902,96.439,96.34,4.43088849]
[1770003406143,4.2337345,96.425,96.37,24.76103881]
[1770003406344,4.2337345,96.485,96.411,4.43088849]
[1770003406544,4.2337345,96.485,96.43,24.76103881]
[1770003406731,4.2337345,96.485,96.411,4.43088849]
[1770003406732,4.2337345,96.485,96.44,24.76103881]
[1770003406933,4.2337345,96.506,96.44,24.76103881]
[1770003407132,45.7462525,96.623,96.46,24.76103881]
[1770003407133,24.76103881,96.53,96.46,24.76103881]
[1770003407339,4.2337345,96.529,96.47,24.76103881]
[1770003407547,24.76103881,96.5,96.44,24.76103881]
[1770003407849,24.76103881,96.49,96.43,24.76103881]
[1770003408159,5.42199246,96.536,96.48,24.76103881]
[1770003408454,4.39717346,96.669,96.531,4.25139433]
[1770003408754,4.39717346,96.609,96.531,4.25139433]
[1770003408934,87.92982165,96.668,96.429,10.37029134]
[1770003408935,4.39717346,96.589,96.53,24.76103881]
[1770003409134,4.39717346,96.579,96.511,4.25139433]
[1770003409438,24.76103881,96.54,96.48,24.76103881]
[1770003409637,24.76103881,96.53,96.47,29.01243314]
[1770003409854,24.76103881,96.53,96.366,5.36086188]
[1770003409855,4.39717346,96.529,96.48,24.76103881]
[1770003410041,29.15821227,96.54,96.48,24.76103881]
[1770003410236,24.76103881,96.53,96.471,4.25139433]
[1770003410429,4.39717346,96.519,96.46,24.76103881]
[1770003411136,24.76103881,96.49,96.376,4.25139433]
[1770003411455,4.39717346,96.54,96.47,24.76103881]
[1770003411635,4.39717346,96.538,96.418,4.27527085]
[1770003411833,4.39717346,96.538,96.49,24.87928016]
[1770003412049,4.39717346,96.519,96.46,24.87928016]
[1770003412349,4.39717346,96.519,96.47,24.87928016]
[1770003412554,24.87928016,96.51,96.45,24.87928016]
[1770003412743,4.39717346,96.519,96.419,4.27527085]
[1770003412936,4.39717346,96.519,96.46,24.87928016]
[1770003413130,4.39717346,96.519,96.45,24.87928016]
[1770003413444,4.39717346,96.519,96.437,4.25139433]
[1770003413445,4.39717346,96.519,96.46,24.87928016]
[1770003413748,4.39717346,96.509,96.45,24.87928016]
[1770003414429,24.87928016,96.52,96.47,24.87928016]
[1770003414633,4.39717346,96.528,96.47,24.87928016]
[1770003414850,24.87928016,96.52,96.437,4.25139433]
[1770003415052,4.39717346,96.528,96.456,4.25139433]
[1770003415251,4.39717346,96.528,96.404,4.27527085]
[1770003415252,4.39717346,96.568,96.51,24.87928016]
[1770003415430,0.1,96.7,96.5,24.87928016]
[1770003415431,4.39717346,96.559,96.5,24.87928016]
[1770003415633,24.87928016,96.52,96.46,24.87928016]
[1770003415844,24.87928016,96.52,96.45,4.25139433]
[1770003415845,24.87928016,96.52,96.47,24.87928016]
[1770003416157,24.87928016,96.52,96.46,24.87928016]
[1770003416361,24.87928016,96.52,96.47,24.87928016]
[1770003416653,4.39717346,96.529,96.369,10.37667658]
[1770003416654,4.39717346,96.529,96.48,24.87928016]
[1770003416952,6.61157056,96.545,96.52,24.87928016]
[1770003417267,6.61157056,96.545,96.486,4.25139433]
[1770003417268,6.61157056,96.545,96.51,24.87928016]
[1770003417457,6.61157056,96.545,96.486,4.25139433]
[1770003417660,6.61157056,96.545,96.51,24.87928016]
[1770003418143,4.39717346,96.588,96.54,24.87928016]
[1770003418538,4.39717346,96.588,96.56,24.87928016]
[1770003419051,4.39717346,96.608,96.58,24.87928016]
[1770003419245,4.39717346,96.608,96.57,24.87928016]
[1770003419443,6.59434184,96.609,96.59,24.87928016]
[1770003419957,6.59434184,96.609,96.484,10.3644102]
[1770003419958,4.90440436,96.609,96.55,4.27527085]
[1770003420163,4.90440436,96.609,96.6,24.87928016]
[1770003420352,4.90440436,96.609,96.55,4.27527085]
[1770003420559,4.5,96.608,96.479,51.15020279]
[1770003420757,4.90440436,96.609,96.57,24.87928016]
[1770003420952,4.90440436,96.609,96.464,5.36086188]
[1770003420953,4.5,96.669,96.6,24.87928016]
[1770003421160,4.5,96.669,96.62,24.87928016]
[1770003421464,4.5,96.688,96.65,24.87928016]
[1770003421669,4.5,96.688,96.517,51.29066572]
[1770003421843,4.5,96.639,96.58,24.87928016]
[1770003422044,4.5,96.629,96.57,24.87928016]
[1770003422362,4.5,96.629,96.58,24.87928016]
[1770003422562,4.5,96.629,96.515,0.24520694]
[1770003422563,4.5,96.599,96.55,24.87928016]
[1770003422766,4.5,96.599,96.515,0.24520694]
[1770003423066,4.5,96.621,96.57,24.87928016]
[1770003423271,4.5,96.621,96.58,24.87928016]
[1770003423447,4.5,96.639,96.59,24.87928016]
[1770003423957,4.5,96.639,96.53,4.27527085]
[1770003423958,4.5,96.629,96.58,24.87928016]
[1770003424163,4.5,96.671,96.62,24.87928016]
[1770003424344,4.5,96.671,96.63,24.87928016]
[1770003424544,4.5,96.671,96.62,24.87928016]
[1770003424748,4.5,96.671,96.57,4.27527085]
[1770003424951,4.5,96.671,96.62,24.87928016]
[1770003425151,4.5,96.669,96.61,24.87928016]
[1770003425469,4.5,96.649,96.6,24.87928016]
[1770003425685,6.56244763,96.696,96.507,28.82]
[1770003425686,4.5,96.692,96.64,24.87928016]
[1770003425848,4.5,96.692,96.65,24.87928016]
[1770003426170,6.56244763,96.696,96.68,24.87928016]
[1770003426376,6.56244763,96.696,96.66,24.87928016]
[1770003426671,4.5,96.695,96.65,24.87928016]
[1770003426847,4.5,96.695,96.553,5.36086188]
[1770003426848,4.5,96.695,96.64,24.87928016]
[1770003427050,6.56244763,96.696,96.611,4.27527085]
[1770003427247,24.87928016,96.65,96.59,24.87928016]
[1770003427466,4.5,96.665,96.62,24.87928016]
[1770003427766,4.5,96.689,96.64,24.87928016]
[1770003427945,4.5,96.679,96.577,4.27527085]
[1770003428147,4.5,96.679,96.64,24.87928016]
[1770003428350,35.36244763,96.696,96.574,51.61959455]
[1770003428351,4.5,96.695,96.574,51.61959455]
[1770003428570,4.5,96.695,96.64,24.87928016]
[1770003428756,4.5,96.695,96.65,24.87928016]
[1770003429255,4.5,96.693,96.547,51.83505946]
[1770003429452,4.5,96.693,96.64,24.87928016]
[1770003429656,4.5,96.689,96.64,24.87928016]
[1770003429975,4.5,96.689,96.65,24.87928016]
[1770003430162,4.5,96.689,96.63,24.87928016]
[1770003430367,4.5,96.689,96.6,24.87928016]
[1770003430572,4.5,96.689,96.567,51.05257899]
[1770003430868,4.5,96.689,96.66,24.87928016]
[1770003431044,4.5,96.689,96.6,24.87928016]
[1770003431045,6.56244763,96.696,96.68,24.87928016]
[1770003431250,6.56244763,96.696,96.69,24.87928016]
[1770003431449,0.1,96.7,96.69,24.87928016]
[1770003431666,0.1,96.7,96.68,24.87928016]
[1770003431868,0.1,96.7,96.631,4.27527085]
[1770003431869,0.1,96.7,96.69,24.87928016]
[1770003432076,0.1,96.7,96.68,24.87928016]
[1770003432454,4.5,96.745,96.69,24.87928016]
[1770003432677,4.5,96.766,96.74,24.87928016]
[1770003432876,4.5,96.766,96.672,4.27527085]
[1770003433081,4.5,96.766,96.74,24.87928016]
[1770003433570,4.5,96.766,96.73,24.87928016]
[1770003433776,4.5,96.766,96.72,24.87928016]
[1770003433966,4.5,96.766,96.73,24.87928016]
[1770003434168,6.82706839,96.784,96.76,24.87928016]
[1770003434371,4.5,96.799,96.656,51.29266982]
[1770003434559,4.5,96.798,96.75,24.87928016]
[1770003434958,24.97928016,96.8,96.692,4.27527085]
[1770003434959,4.5,96.796,96.74,24.87928016]
[1770003435261,4.5,96.779,96.72,24.87928016]
[1770003435571,0.1,96.8,96.77,24.87928016]
[1770003435757,4.5,96.789,96.73,24.87928016]
[1770003435957,4.5,96.769,96.72,24.87928016]
[1770003436281,4.5,96.777,96.73,24.87928016]
[1770003436574,4.5,96.776,96.73,24.75082947]
[1770003436759,4.5,96.776,96.648,51.291465]
[1770003436956,4.5,96.759,96.7,24.75082947]
[1770003437156,4.5,96.749,96.7,24.75082947]
[1770003437571,4.5,96.769,96.7,24.75082947]
[1770003437753,4.5,96.769,96.71,24.75082947]
[1770003437958,4.5,96.788,96.74,24.75082947]
[1770003438157,0.1,96.8,96.76,24.75082947]
[1770003438359,0.1,96.8,96.79,24.75082947]
[1770003438579,15.2611108,97.036,96.79,24.75082947]
[1770003438580,4.5,96.847,96.79,24.75082947]
[1770003439052,4.5,96.846,96.78,24.75082947]
[1770003439455,4.5,96.839,96.742,4.27527085]
[1770003439662,4.5,96.829,96.77,24.75082947]
[1770003439863,4.5,96.809,96.74,24.75082947]
[1770003440078,4.5,96.789,96.73,24.75082947]
[1770003440265,4.5,96.789,96.72,24.75082947]
[1770003440463,4.5,96.769,96.7,24.75082947]
[1770003440775,4.5,96.739,96.69,24.75082947]
[1770003440980,80.39806276,96.821,96.662,4.27527085]
[1770003440981,4.5,96.76,96.662,4.27527085]
[1770003441284,4.5,96.76,96.72,24.75082947]
[1770003441483,4.5,96.799,96.73,24.75082947]
[1770003441680,4.5,96.799,96.74,24.75082947]
[1770003441867,4.5,96.779,96.71,24.75082947]
[1770003442066,4.402,96.779,96.72,24.75082947]
[1770003442267,24.75082947,96.78,96.71,24.75082947]
[1770003442474,24.75082947,96.79,96.73,24.75082947]
[1770003442668,6.55214049,96.818,96.75,24.75082947]
[1770003443079,6.55214049,96.818,96.721,0.098]
[1770003443280,6.55214049,96.818,96.75,24.75082947]
[1770003443281,24.75082947,96.81,96.75,24.75082947]
[1770003443477,24.75082947,96.79,96.72,24.75082947]
[1770003443674,24.75082947,96.78,96.72,24.75082947]
[1770003443872,24.75082947,96.8,96.73,24.75082947]
[1770003444169,4.451,96.789,96.74,24.75082947]
[1770003444484,4.451,96.789,96.712,4.27527085]
[1770003444485,4.451,96.809,96.75,24.75082947]
[1770003444686,4.451,96.809,96.76,24.75082947]
[1770003444871,6.55214049,96.818,96.77,24.75082947]
[1770003445189,4.451,96.839,96.78,24.75082947]
[1770003445483,24.75082947,96.82,96.76,24.75082947]
[1770003445683,4.27527085,96.86,96.74,0.098]
[1770003445684,4.451,96.819,96.77,24.75082947]
[1770003445883,4.451,96.819,96.74,0.098]
[1770003445884,4.451,96.819,96.75,24.75082947]
[1770003446084,4.451,96.819,96.74,0.098]
[1770003446085,4.451,96.819,96.77,24.75082947]
[1770003446264,4.451,96.839,96.78,24.75082947]
[1770003446467,4.451,96.839,96.724,0.098]
[1770003446780,4.451,96.829,96.77,24.75082947]
[1770003447170,4.451,96.829,96.732,4.27527085]